bitfinex/quotes_ETHUSD_20240711
["timestamp","ask_amount","ask_price","bid_price","bid_amount"]
[1720661754862,3.74042899,3102.6,3101.3,2.87231986]
[1720661755024,0.08117963,3101.9,3101.3,2.87231986]
[1720661755350,3.74042899,3102.6,3101.4,0.58723199]
[1720661755526,1.19858388,3102.5,3101.3,2.3165]
[1720661755727,1.11727727,3102.4,3101.3,2.3165]
[1720661755936,0.08126429,3102.3,3101.3,2.3165]
[1720661756145,1.11727684,3102.2,3101.4,0.06448153]
[1720661756315,0.08122471,3102.1,3101.5,2.2655]
[1720661756510,2.3054,3102.9,3101.6,0.29747197]
[1720661756833,1.19857149,3102.8,3101.7,2.4907]
[1720661757027,0.08138824,3102.8,3101.8,0.06447065]
[1720661757235,0.08138824,3102.8,3101.7,2.4907]
[1720661757436,0.08138824,3102.8,3101.9,2.4907]
[1720661757658,0.08138824,3102.8,3102.0,0.06446233]
[1720661757950,0.08153617,3102.7,3102.1,2.3593]
[1720661758113,0.08153617,3102.7,3102.2,0.06445861]
[1720661758312,5.58893485,3103.6,3102.2,0.06445861]
[1720661758512,1.19856355,3103.5,3102.4,2.3593]
[1720661758717,0.08170535,3103.5,3102.5,2.2543]
[1720661759148,1.68613371,3104.0,3102.5,2.2543]
[1720661759453,0.08188467,3103.9,3102.5,2.2543]
[1720661759615,0.08188467,3103.9,3102.6,0.06444878]
[1720661759818,0.08188467,3103.9,3102.7,0.23187488]
[1720661761135,1.11679928,3103.8,3102.6,3.0]
[1720661761325,0.0819205,3103.7,3102.5,2.2543]
[1720661761668,3.74045222,3104.0,3102.5,2.2543]
[1720661761865,0.08193152,3103.6,3102.5,2.2543]
[1720661762073,3.953,3103.9,3102.5,2.2543]
[1720661762368,1.11680067,3103.8,3102.5,2.2543]
[1720661762523,2.4948,3103.6,3102.5,2.2543]
[1720661762720,0.08194458,3103.5,3102.5,2.2543]
[1720661763264,0.08194458,3103.5,3102.6,0.06445457]
[1720661763555,0.0818341,3103.4,3102.7,2.4563]
[1720661763763,4.5128,3103.9,3102.7,2.4563]
[1720661763924,4.60173119,3103.8,3102.1,2.4563]
[1720661764119,3.403,3103.6,3102.1,2.4563]
[1720661764345,5.8978,3103.4,3102.1,2.4563]
[1720661764547,3.403,3103.2,3102.1,2.4563]
[1720661764824,1.19879881,3103.1,3102.1,2.4563]
[1720661765055,0.08198629,3103.1,3102.1,2.4563]
[1720661765428,0.08198629,3103.1,3102.1,3.44193]
[1720661765768,2.4948,3103.4,3102.1,3.44193]
[1720661766056,0.08197058,3103.3,3102.3,2.48]
[1720661766500,2.3533,3103.7,3102.3,2.48]
[1720661766783,1.19886811,3103.6,3102.3,2.48]
[1720661766988,1.11687544,3103.5,3102.3,2.48]
[1720661767190,0.08197335,3103.4,3102.3,2.48]
[1720661767389,0.08197335,3103.4,3102.3,2.826563]
[1720661767592,1.11690985,3103.3,3102.3,2.826563]
[1720661767765,0.08193336,3103.2,3102.3,2.826563]
[1720661767966,2.3533,3103.7,3102.3,2.826563]
[1720661768268,1.19895399,3103.6,3102.3,2.48]
[1720661768570,0.08202483,3103.6,3102.3,2.48]
[1720661768775,1.1168921,3103.5,3102.3,2.48]
[1720661768974,1.19900144,3103.4,3102.3,2.54445716]
[1720661769183,0.08210934,3103.4,3102.3,2.54445716]
[1720661769379,2.018,3103.9,3102.5,2.3266]
[1720661769553,2.83445222,3104.0,3102.5,2.3266]
[1720661769554,1.19895764,3103.8,3102.5,2.3266]
[1720661769754,1.11676374,3103.7,3102.5,2.3266]
[1720661770004,1.19885836,3103.6,3102.5,2.3266]
[1720661770183,0.08209462,3103.6,3102.7,2.3266]
[1720661770363,8.25739906,3104.3,3102.8,2.6301496]
[1720661770571,1.19892826,3104.2,3102.8,2.6301496]
[1720661770895,1.11660804,3104.1,3103.0,2.4902]
[1720661771099,1.11660804,3104.1,3103.1,0.06444465]
[1720661771301,0.08220956,3104.0,3103.1,3.06444465]
[1720661771456,0.08220956,3104.0,3103.1,3.0]
[1720661771659,0.08220956,3104.0,3103.0,2.4902]
[1720661771853,2.4178,3104.3,3103.0,3.06313049]
[1720661772085,0.08218842,3103.9,3103.1,3.0]
[1720661772452,5.8208,3104.3,3103.0,2.4902]
[1720661772652,0.08216728,3103.8,3103.0,2.4902]
[1720661772992,0.08243074,3103.7,3103.0,2.4902]
[1720661773153,2.018,3104.2,3103.0,2.73922]
[1720661773349,1.19913902,3104.1,3103.0,2.4902]
[1720661773555,1.1166375,3104.0,3103.0,2.4902]
[1720661773755,0.08245925,3103.9,3103.0,2.4902]
[1720661773965,1.1166375,3103.8,3103.0,2.4902]
[1720661774167,0.08240549,3103.7,3102.7,2.4351]
[1720661774367,1.1166375,3103.6,3102.7,2.4351]
[1720661774605,0.08236091,3103.5,3102.7,2.67861]
[1720661774790,0.08236091,3103.5,3102.9,2.3691]
[1720661775101,5.8208,3104.3,3103.0,0.06444461]
[1720661775265,2.23323326,3104.2,3103.0,0.06444461]
[1720661775465,1.11660782,3104.1,3102.9,2.3691]
[1720661775966,0.08240708,3104.0,3102.9,2.3691]
[1720661776166,1.11660782,3103.9,3102.9,2.3691]
[1720661776361,0.08237396,3103.8,3102.9,2.3691]
[1720661776786,1.11662544,3104.2,3102.9,2.3691]
[1720661776984,1.19908635,3104.1,3102.9,2.3691]
[1720661777282,1.11664897,3104.0,3102.9,2.3691]
[1720661777484,1.11664897,3104.0,3102.9,2.93680546]
[1720661777698,0.08240429,3103.9,3102.9,2.93680546]
[1720661777872,1.11664897,3103.8,3103.0,0.06444461]
[1720661778066,0.08240429,3103.9,3103.0,0.06444461]
[1720661778267,0.08236201,3103.7,3103.0,0.06444461]
[1720661778479,0.08238315,3103.8,3103.0,0.66456962]
[1720661778681,0.08234086,3103.6,3103.0,0.60012501]
[1720661778878,0.08179201,3103.7,3102.9,2.3691]
[1720661779102,0.08177086,3103.6,3102.9,2.3691]
[1720661779419,1.11662544,3104.2,3102.9,2.3691]
[1720661779723,1.1985334,3104.1,3102.9,2.3691]
[1720661779922,1.11665913,3104.0,3102.9,2.3691]
[1720661780089,0.08182281,3103.9,3102.9,2.930361]
[1720661780290,1.11665913,3103.8,3102.9,2.930361]
[1720661780608,0.08178053,3103.7,3102.9,2.930361]
[1720661780984,1.11662544,3104.2,3102.9,2.930361]
[1720661781180,1.19856258,3104.1,3102.9,2.3691]
[1720661781413,1.1166975,3104.0,3102.9,2.3691]
[1720661781783,2.39032281,3103.9,3102.6,2.2968]
[1720661782001,1.11682103,3103.8,3102.6,2.2968]
[1720661782196,2.39032281,3103.9,3102.6,2.2968]
[1720661782197,1.19861517,3103.7,3102.6,2.2968]
[1720661782400,1.11682103,3103.6,3102.6,2.2968]
[1720661782596,0.08174956,3103.5,3102.6,2.2968]
[1720661782820,2.3138,3103.3,3102.2,5.4321]
[1720661783010,2.3138,3103.3,3102.3,1.28321]
[1720661783327,1.19847852,3103.2,3102.2,5.4321]
[1720661783531,0.08160575,3103.2,3102.2,2.4321]
[1720661783739,2.3044,3103.7,3102.2,2.4321]
[1720661784040,1.19848318,3103.6,3102.2,2.4321]
[1720661784417,1.11686864,3103.5,3102.2,2.4321]
[1720661784617,1.11686864,3103.4,3102.3,0.24321]
[1720661784928,1.11686864,3103.3,3102.3,3.24321]
[1720661785125,1.1983848,3103.2,3102.3,3.24321]
[1720661785508,0.08151616,3103.2,3102.3,3.24321]
[1720661785840,2.3044,3103.7,3102.3,3.24321]
[1720661786007,1.11678761,3103.6,3102.4,0.567531]
[1720661786208,1.19838836,3103.6,3102.4,0.567531]
[1720661786430,1.11678761,3103.5,3102.4,0.567531]
[1720661786836,0.08155846,3103.4,3102.4,0.567531]
[1720661787019,1.11678761,3103.3,3102.4,0.567531]
[1720661787236,1.11678761,3103.3,3102.5,0.3810741]
[1720661787540,0.08151616,3103.2,3102.5,0.3810741]
[1720661787760,1.11678761,3103.1,3102.5,0.3810741]
[1720661787910,0.08147386,3103.0,3102.5,0.3810741]
[1720661788306,2.3044,3103.7,3102.5,0.3810741]
[1720661788613,1.19842018,3103.6,3102.5,0.3810741]
[1720661788813,0.08159037,3103.6,3102.5,0.3810741]
[1720661789022,1.11685134,3103.5,3102.5,0.3810741]
[1720661789227,1.11685134,3103.4,3102.5,0.3810741]
[1720661789452,1.11685134,3103.3,3102.5,0.3810741]
[1720661789658,1.11685134,3103.2,3102.6,2.4339]
[1720661789828,0.08152416,3103.2,3102.7,0.28149741]
[1720661790156,2.71173649,3104.7,3102.7,0.28149741]
[1720661790157,2.2818,3104.0,3102.8,0.0644514]
[1720661790374,1.19834588,3103.9,3103.0,2.4678]
[1720661790530,1.11663285,3103.8,3103.1,0.06444426]
[1720661790859,0.0816906,3103.7,3103.1,0.06444426]
[1720661791238,2.2818,3104.0,3103.1,0.06444426]
[1720661791435,0.08166945,3103.6,3103.2,0.25322443]
[1720661791641,2.2818,3104.0,3103.2,0.25322443]
[1720661791846,0.08164831,3103.5,3103.2,0.25322443]
[1720661792045,2.2818,3104.0,3103.2,0.25322443]
[1720661792250,0.08170753,3103.4,3103.2,0.25322443]
[1720661792542,2.2818,3104.0,3103.2,0.25322443]
[1720661792751,1.19845889,3103.9,3103.2,0.25322443]
[1720661792930,1.11664565,3103.8,3103.2,0.25322443]
[1720661793130,1.19841661,3103.7,3103.2,0.25322443]
[1720661793332,0.08177096,3103.7,3103.2,0.25322443]
[1720661793653,2.2818,3104.0,3103.2,0.25322443]
[1720661793829,1.11663269,3103.9,3102.9,0.33459488]
[1720661794035,1.11663269,3103.8,3102.9,0.33459488]
[1720661794234,2.3862,3103.7,3102.7,3.0]
[1720661794437,2.3862,3103.7,3102.6,2.4843]
[1720661794438,1.11663269,3103.6,3102.6,2.4843]
[1720661794660,1.11663269,3103.6,3102.3,3.0]
[1720661794661,1.11663269,3103.6,3102.3,5.2537]
[1720661794935,0.41926633,3103.5,3102.3,5.2537]
[1720661795172,1.11663269,3103.4,3102.3,5.2537]
[1720661795373,0.08174148,3103.3,3102.4,1.26537]
[1720661795683,1.1168639,3103.2,3102.4,1.26537]
[1720661795829,1.1168639,3103.1,3102.3,5.2537]
[1720661796030,0.08169918,3103.1,3102.3,2.2537]
[1720661796236,0.33743434,3103.5,3102.4,0.06445421]
[1720661796431,1.11678399,3103.4,3102.4,0.06445421]
[1720661796759,1.11678399,3103.3,3102.4,0.06445421]
[1720661796944,0.0816216,3103.2,3102.5,0.23181542]
[1720661797355,0.33743434,3103.5,3102.5,0.23181542]
[1720661797564,1.19842572,3103.4,3102.5,0.23181542]
[1720661797782,0.08165351,3103.4,3102.6,0.61445316]
[1720661797938,0.33743434,3103.5,3102.7,2.67112686]
[1720661798135,0.33743434,3103.5,3102.9,2.3847]
[1720661798334,0.33743434,3103.5,3103.0,0.06443881]
[1720661799097,0.08162075,3103.4,3102.9,2.3847]
[1720661799466,0.33743434,3103.5,3102.9,2.3847]
[1720661799670,0.33743434,3103.5,3103.0,0.53847]
[1720661799901,0.33743434,3103.5,3103.0,3.53847]
[1720661800191,1.1166854,3103.4,3103.0,3.53847]
[1720661800404,0.08171424,3103.3,3103.0,3.53847]
[1720661801600,0.08171424,3103.3,3103.1,0.592317]
[1720661802012,0.08171424,3103.3,3103.0,3.0]
[1720661802169,0.08171424,3103.3,3102.8,3.0]
[1720661802366,0.08171424,3103.3,3102.7,3.28642686]
[1720661802676,1.11674254,3103.2,3102.7,3.28642686]
[1720661802886,0.08171424,3103.3,3102.7,3.28642686]
[1720661803097,1.11674708,3103.2,3102.8,0.62516269]
[1720661803280,0.08171424,3103.3,3102.8,0.62516269]
[1720661804883,0.08171424,3103.3,3102.7,3.0]
[1720661805079,2.80790251,3103.2,3102.5,7.4]
[1720661805398,1.11682295,3103.1,3102.5,7.4]
[1720661806002,1.1168782,3103.0,3102.5,7.4]
[1720661806216,1.6917338,3103.2,3102.5,7.4]
[1720661806217,1.1168782,3102.9,3102.5,7.4]
[1720661806370,0.08141519,3102.8,3102.2,2.4925]
[1720661806571,1.77344804,3103.3,3102.3,0.24925]
[1720661806901,1.6917338,3103.1,3102.3,3.0]
[1720661807093,1.6917338,3103.1,3102.0,3.0]
[1720661807287,1.19837569,3103.0,3101.9,2.4768]
[1720661807488,1.11689545,3102.9,3101.9,2.4768]
[1720661807866,0.08141726,3102.8,3101.9,2.4768]
[1720661808089,1.11689545,3102.7,3102.0,0.54768]
[1720661808305,1.11689545,3102.7,3102.0,3.54768]
[1720661808469,0.08132826,3102.6,3102.0,3.54768]
[1720661808829,1.6917338,3103.1,3102.0,3.54768]
[1720661808969,1.11693734,3103.0,3102.0,3.54768]
[1720661809174,0.08133059,3102.9,3102.1,0.602448]
[1720661809369,1.11693742,3102.9,3102.1,0.602448]
[1720661809569,0.08128184,3102.8,3102.1,0.602448]
[1720661809787,2.41771424,3103.3,3102.1,0.602448]
[1720661809996,1.19808848,3103.2,3102.3,2.4768]
[1720661810208,0.33742844,3103.1,3102.4,0.91712889]
[1720661810507,0.0812592,3103.0,3102.4,3.91712889]
[1720661810872,0.33742844,3103.1,3102.4,3.91712889]
[1720661811375,0.0812845,3103.0,3102.4,3.91712889]
[1720661813784,0.0812845,3103.0,3102.4,3.85268]
[1720661813988,0.0812845,3103.0,3102.5,0.632948]
[1720661814203,0.0812845,3103.0,3102.6,3.09124317]
[1720661814505,0.08171424,3103.3,3102.6,3.09124317]
[1720661814722,0.08171424,3103.3,3102.7,4.12205544]
[1720661814922,0.08144169,3103.2,3102.8,0.0644418]
[1720661815107,0.08171424,3103.3,3102.9,0.30644418]
[1720661815514,0.08144169,3103.2,3102.9,0.30644418]
[1720661815724,0.08171424,3103.3,3102.9,0.30644418]
[1720661816498,0.08171424,3103.3,3103.0,0.06444182]
[1720661816736,0.08171424,3103.3,3103.1,2.4768]
[1720661816944,0.08171424,3103.3,3103.2,0.86855662]
[1720661817300,0.08171424,3103.3,3103.2,3.86855662]
[1720661817935,0.08171424,3103.3,3103.2,3.80412418]
[1720661820130,0.08171424,3103.3,3103.2,3.0]
[1720661820344,0.08171424,3103.3,3102.9,3.30644418]
[1720661824855,0.08171424,3103.3,3103.0,0.55]
[1720661825072,0.08171424,3103.3,3103.0,3.55]
[1720661826056,0.08171424,3103.3,3103.1,0.0644349]
[1720661826255,0.08171424,3103.3,3103.2,0.91144349]
[1720661826849,0.08171424,3103.3,3103.2,0.97587822]
[1720661827155,0.08171424,3103.3,3103.2,0.91144349]
[1720661829778,0.08171424,3103.3,3103.2,3.25387531]
[1720661829993,0.08171424,3103.3,3103.2,6.25387531]
[1720661830846,0.08171424,3103.3,3103.2,6.18944349]
[1720661833348,0.08171424,3103.3,3103.2,6.25387539]
[1720661834567,0.08171424,3103.3,3103.2,6.18944349]
[1720661836857,0.08171424,3103.3,3103.2,3.36144349]
[1720661837051,0.08171424,3103.3,3103.2,0.36144349]
[1720661837250,0.08171424,3103.3,3103.2,3.36144349]
[1720661837661,0.08171424,3103.3,3103.2,3.0]
[1720661838068,0.16081393,3103.3,3102.9,3.30644418]
[1720661838479,0.08171424,3103.3,3102.9,3.30644418]
[1720661838677,0.08171424,3103.3,3102.9,6.59366846]
[1720661838855,0.08171424,3103.3,3103.0,2.4889]
[1720661839065,0.08171424,3103.3,3103.1,1.52268848]
[1720661839265,0.08171424,3103.3,3103.1,4.52268848]
[1720661841053,0.08171424,3103.3,3103.1,4.45825685]
[1720661841262,0.08171424,3103.3,3103.1,3.90825685]
[1720661841467,0.08171424,3103.3,3102.9,0.30644418]
[1720661841692,0.08171424,3103.3,3103.0,0.55]
[1720661843161,0.08171424,3103.3,3102.9,0.30644418]
[1720661843596,0.08171424,3103.3,3102.5,0.6973896]
[1720661843797,0.08171424,3103.3,3102.5,3.6973896]
[1720661843996,0.08171424,3103.3,3102.7,3.22299]
[1720661844230,0.08171424,3103.3,3102.8,6.60706801]
[1720661844521,0.08171424,3103.3,3103.2,2.018]
[1720661844727,0.08171424,3103.3,3102.8,7.4387]
[1720661845019,0.08171424,3103.3,3102.9,1.29387]
[1720661845791,0.08171424,3103.3,3102.9,1.3583031]
[1720661846994,0.08171424,3103.3,3102.9,6.26387552]
[1720661847192,0.08171424,3103.3,3103.0,3.0]
[1720661847420,0.08171424,3103.3,3103.1,0.61443409]
[1720661847605,0.08171424,3103.3,3103.2,0.36144341]
[1720661847803,0.08171424,3103.3,3103.2,0.91144341]
[1720661848028,0.08171424,3103.3,3103.2,5.30197628]
[1720661848189,2.78261626,3104.3,3103.2,11.52445628]
[1720661848526,0.07680376,3104.2,3103.3,3.83679505]
[1720661848738,0.07680376,3104.2,3103.4,4.15243385]
[1720661848911,0.33741626,3104.3,3103.5,0.6144233]
[1720661849293,2.4349,3104.6,3103.6,7.57052]
[1720661849496,8.20313327,3105.8,3103.7,3.61441748]
[1720661849497,2.4349,3104.9,3103.7,3.61441748]
[1720661849693,1.11614678,3104.8,3103.8,0.06441435]
[1720661850003,2.4349,3104.9,3103.8,0.06441435]
[1720661850004,2.4349,3104.9,3103.9,0.91144144]
[1720661850221,1.19320142,3104.8,3104.0,0.06441438]
[1720661850410,0.07707301,3104.8,3104.1,0.55]
[1720661850726,0.07707301,3104.8,3104.2,0.06441446]
[1720661850898,0.07707301,3104.8,3104.1,0.55]
[1720661851094,0.07707301,3104.8,3104.0,0.55]
[1720661851409,2.4349,3104.9,3104.0,0.55]
[1720661851608,1.11613595,3104.8,3104.0,0.55]
[1720661851812,2.4349,3104.9,3104.0,0.55]
[1720661852114,1.11617128,3104.8,3104.0,0.55]
[1720661852315,2.4349,3104.9,3104.0,0.55]
[1720661852528,1.11614206,3104.8,3104.0,0.55]
[1720661852694,2.4349,3104.9,3104.0,0.55]
[1720661852894,1.11614149,3104.8,3104.0,0.55]
[1720661853096,2.4349,3104.9,3104.0,0.55]
[1720661853326,1.11612917,3104.8,3104.0,0.55]
[1720661853637,2.4349,3104.9,3104.0,0.55]
[1720661853931,1.1161848,3104.8,3104.0,0.55]
[1720661854101,2.4349,3104.9,3103.9,0.36144144]
[1720661854309,0.33741562,3105.1,3103.7,3.0]
[1720661854310,2.475,3104.7,3103.7,3.0]
[1720661854507,2.475,3104.7,3103.6,2.018]
[1720661854696,0.07694782,3104.6,3103.6,2.018]
[1720661854899,2.475,3104.7,3103.6,2.018]
[1720661855206,2.475,3104.7,3103.7,0.5018]
[1720661855420,2.475,3104.7,3103.7,3.5018]
[1720661855936,2.475,3104.7,3103.8,0.55]
[1720661856633,2.475,3104.7,3103.8,2.9864]
[1720661856932,2.475,3104.7,3103.9,3.0]
[1720661857147,2.475,3104.7,3104.0,0.59864]
[1720661857429,2.475,3104.7,3103.9,3.0]
[1720661857639,2.475,3104.7,3103.8,0.55]
[1720661858002,2.475,3104.7,3103.9,0.06441822]
[1720661859513,2.475,3104.7,3104.0,0.55]
[1720661859826,2.4032,3105.0,3104.1,0.06441657]
[1720661860030,0.0772034,3104.9,3104.1,0.06441657]
[1720661861336,0.0772034,3104.9,3104.1,2.43461657]
[1720661861639,0.0772034,3104.9,3104.2,0.84846166]
[1720661861852,0.0772034,3104.9,3104.3,0.0644122]
[1720661861999,2.4032,3105.0,3104.3,0.0644122]
[1720661862401,0.07690571,3104.9,3104.3,0.0644122]
[1720661863623,2.4032,3105.0,3104.3,0.0644122]
[1720661866120,2.4032,3105.0,3104.4,0.39128739]
[1720661866325,2.4032,3105.0,3104.5,0.06441009]
[1720661866529,2.4989,3105.7,3104.5,0.06441009]
[1720661866741,1.11603326,3105.6,3104.4,0.39128739]
[1720661866941,1.11603326,3105.6,3104.8,2.018]
[1720661866942,1.11603326,3105.5,3104.8,2.018]
[1720661867142,0.07705002,3105.6,3105.0,2.4332]
[1720661867345,0.07700872,3105.4,3105.2,2.018]
[1720661867586,2.4456,3106.7,3105.3,0.61438886]
[1720661867739,1.11557226,3106.6,3105.3,0.61438886]
[1720661867941,0.07465332,3106.6,3105.4,0.58527889]
[1720661868241,2.4456,3106.7,3105.5,0.61437861]
[1720661868541,0.07479553,3106.6,3106.0,5.23756]
[1720661868889,2.4456,3107.3,3106.2,2.3327]
[1720661869055,2.018,3108.4,3106.2,2.3327]
[1720661869056,0.07011549,3107.2,3106.8,3.2187]
[1720661869258,2.4456,3108.4,3107.0,2.3327]
[1720661869469,0.07025897,3108.3,3107.1,2.08234584]
[1720661869656,2.4456,3108.6,3107.1,5.63234584]
[1720661869977,2.4456,3108.6,3107.1,8.85077584]
[1720661870289,2.4456,3108.6,3107.1,5.63234584]
[1720661870477,0.07063273,3108.5,3107.1,5.63234584]
[1720661871134,0.07063273,3108.5,3107.1,5.568]
[1720661871374,2.4456,3108.6,3107.1,3.55]
[1720661871574,0.07126557,3108.4,3107.2,0.06435296]
[1720661871870,0.07129631,3108.3,3107.2,0.06435296]
[1720661872073,2.4456,3108.6,3107.2,0.06435296]
[1720661872234,0.07129072,3108.5,3107.1,3.55]
[1720661873177,0.07129072,3108.5,3107.2,3.0]
[1720661873363,0.07129072,3108.5,3106.7,3.0]
[1720661873564,0.07129072,3108.5,3106.5,2.3175]
[1720661873565,2.3426,3108.4,3106.5,2.3175]
[1720661873880,0.07143821,3108.3,3106.6,0.23175]
[1720661875083,0.07143821,3108.3,3106.7,0.55]
[1720661875787,2.3426,3108.4,3106.7,0.55]
[1720661876176,0.07125976,3108.3,3106.7,0.55]
[1720661877293,0.07125976,3108.3,3106.8,0.06435689]
[1720661877497,2.3426,3108.4,3106.9,0.55]
[1720661877670,0.07002585,3108.3,3107.0,0.06435295]
[1720661877855,0.07002585,3108.3,3107.1,0.55]
[1720661878051,0.07002585,3108.3,3107.2,0.06435295]
[1720661878785,0.07002585,3108.3,3107.2,0.61435295]
[1720661878982,0.07002585,3108.3,3107.3,0.06435295]
[1720661880680,0.07002585,3108.3,3107.2,0.55]
[1720661880982,0.07002585,3108.3,3107.1,0.55]
[1720661881224,0.07002585,3108.3,3107.1,1.1]
[1720661881913,0.07002585,3108.3,3107.2,0.06435253]
[1720661882209,0.07002585,3108.3,3107.1,1.1]
[1720661883109,0.07002585,3108.3,3107.2,0.06435004]
[1720661883990,0.07002585,3108.3,3107.1,1.1]
[1720661884716,0.07002585,3108.3,3107.1,0.55]
[1720661884928,2.3389,3108.2,3106.9,0.55]
[1720661885375,0.07008691,3108.1,3106.9,0.55]
[1720661886423,0.07008691,3108.1,3107.0,0.06435714]
[1720661886605,0.07008691,3108.1,3107.1,0.55]
[1720661886811,2.3389,3108.2,3107.2,0.06434759]
[1720661886983,2.3389,3108.2,3107.3,0.6143476]
[1720661887315,0.07009752,3108.1,3107.3,0.6143476]
[1720661887722,0.07009752,3108.1,3107.3,0.55]
[1720661887893,0.07009752,3108.1,3107.0,0.55]
[1720661888095,2.3389,3108.2,3107.0,0.55]
[1720661888281,2.3389,3108.2,3106.8,0.55]
[1720661888683,2.3389,3108.2,3106.9,0.06435657]
[1720661890040,2.3389,3108.2,3107.0,0.55]
[1720661890320,2.3389,3108.2,3107.1,0.06434908]
[1720661890611,2.3389,3108.2,3107.2,0.55]
[1720661890825,2.3389,3108.2,3107.3,0.06434666]
[1720661891028,2.3389,3108.2,3106.8,3.76868]
[1720661891029,2.3389,3108.2,3106.8,0.55]
[1720661891200,2.3389,3108.2,3106.9,0.55]
[1720661891538,2.3389,3108.2,3107.0,0.06435227]
[1720661891706,2.3389,3108.2,3107.1,0.55]
[1720661892212,2.3389,3108.2,3106.9,0.55]
[1720661894244,2.3389,3108.2,3107.0,0.06435711]
[1720661894414,0.0695601,3108.1,3107.0,0.06435711]
[1720661894613,2.3389,3108.2,3107.1,0.55]
[1720661894822,0.33708829,3108.0,3107.2,0.06435231]
[1720661895406,0.33708829,3108.0,3106.8,0.61435237]
[1720661895635,0.33708829,3108.0,3106.9,0.55]
[1720661895636,0.06951794,3107.9,3106.9,0.55]
[1720661895823,0.33708829,3108.0,3107.0,0.06435239]
[1720661896026,0.33708829,3108.0,3107.1,2.8696]
[1720661896341,0.33708829,3108.0,3107.2,3.29339524]
[1720661896504,0.33708829,3108.0,3107.3,0.55]
[1720661897543,0.33708829,3108.0,3107.2,3.29339524]
[1720661897849,3.401,3109.1,3107.2,0.29339524]
[1720661898098,1.11491219,3109.0,3107.4,2.2554]
[1720661898206,0.06277663,3109.0,3108.4,2.2554]
[1720661898506,0.27420096,3109.0,3108.5,1.14040552]
[1720661898705,0.1137545,3109.5,3108.5,3.06431508]
[1720661898937,0.1137545,3109.5,3108.6,1.08197151]
[1720661899142,0.1137545,3109.5,3108.6,1.14628491]
[1720661900510,0.1137545,3109.5,3108.6,4.36315491]
[1720661900710,0.1137545,3109.5,3108.7,6.21677]
[1720661900929,0.1137545,3109.5,3108.8,0.61430939]
[1720661901134,0.1137545,3109.5,3108.9,0.36143094]
[1720661901448,0.1137545,3109.5,3109.0,0.614305]
[1720661902738,0.1137545,3109.5,3109.0,3.614305]
[1720661903044,0.1137545,3109.5,3109.2,3.21625]
[1720661903253,0.00675775,3111.4,3109.8,3.21562]
[1720661903459,0.33680997,3111.2,3109.9,0.321562]
[1720661903637,0.33680997,3111.2,3109.9,0.55]
[1720661903949,2.4894,3111.1,3109.9,0.55]
[1720661904254,2.4894,3111.1,3109.6,0.55]
[1720661904437,0.05277624,3111.0,3109.6,0.55]
[1720661905949,0.05277624,3111.0,3109.7,0.06429719]
[1720661906113,0.05277624,3111.0,3109.8,0.55]
[1720661907532,0.05277624,3111.0,3109.7,0.55]
[1720661907733,0.05277624,3111.0,3109.7,0.91142934]
[1720661908152,2.4894,3111.1,3109.7,0.91142934]
[1720661908355,2.4894,3111.1,3109.7,0.55]
[1720661908554,0.33683033,3110.9,3109.6,0.55]
[1720661909042,2.31995269,3110.8,3109.0,2.018]
[1720661909445,2.31995269,3110.8,3109.1,0.23794309]
[1720661910570,4.33795269,3110.8,3109.1,0.23794309]
[1720661910868,4.33795269,3110.8,3108.9,0.36143094]
[1720661911633,2.018,3110.4,3108.6,0.53197151]
[1720661911813,2.2957,3110.3,3108.4,7.4]
[1720661912009,2.2957,3110.3,3108.2,2.018]
[1720661912313,0.05270184,3110.2,3108.3,0.0643209]
[1720661912538,2.2957,3110.3,3108.3,0.0643209]
[1720661912746,2.2957,3110.3,3108.4,0.20823209]
[1720661913053,2.2957,3110.3,3108.5,0.61431271]
[1720661913207,0.05269493,3110.2,3108.5,0.61431271]
[1720661913652,0.05269493,3110.2,3108.5,3.61431271]
[1720661913859,2.2957,3110.3,3108.5,3.61431271]
[1720661914068,0.05261628,3110.1,3108.6,0.70396048]
[1720661914234,0.05262121,3110.2,3108.7,0.61431158]
[1720661914415,2.2957,3110.3,3108.8,0.06431163]
[1720661914611,0.05259785,3110.1,3108.9,0.55]
[1720661914839,0.05261891,3110.2,3108.7,0.55]
[1720661915145,0.05259555,3110.1,3108.4,0.20823209]
[1720661915357,0.05259555,3110.1,3108.5,0.32082321]
[1720661915517,0.05259555,3110.1,3108.6,0.0643149]
[1720661915713,2.2957,3110.3,3108.6,0.0643149]
[1720661916548,2.2957,3110.3,3108.7,0.55]
[1720661916750,2.2957,3110.3,3108.6,0.55]
[1720661917119,2.2957,3110.3,3108.7,0.06431495]
[1720661917314,2.2957,3110.3,3108.9,2.4098]
[1720661917518,2.2957,3110.3,3109.1,3.21636]
[1720661917717,2.3814,3111.1,3109.2,3.06430069]
[1720661917917,0.05275358,3111.0,3109.3,0.61429881]
[1720661919127,2.3814,3111.1,3109.3,0.61429881]
[1720661919363,0.05266313,3111.0,3109.3,0.61429881]
[1720661920451,0.05266313,3111.0,3109.4,3.21605]
[1720661920661,0.05266313,3111.0,3109.6,3.21576]
[1720661920821,2.3814,3111.1,3109.7,3.06428835]
[1720661921023,2.3814,3111.1,3109.8,0.61428916]
[1720661921626,2.3814,3111.1,3109.8,0.55]
[1720661922053,0.05271441,3111.0,3109.6,0.55]
[1720661922326,2.3814,3111.1,3109.7,0.39330349]
[1720661922549,2.3814,3111.1,3109.8,0.55]
[1720661922920,0.05294701,3111.0,3109.8,0.06429669]
[1720661923140,0.00675775,3111.4,3110.0,2.2742]
[1720661923345,0.05306309,3111.3,3110.0,5.3384892]
[1720661923634,0.05306309,3111.3,3110.1,1.08384892]
[1720661923834,0.00675775,3111.4,3110.2,0.06427973]
[1720661924079,0.00675775,3111.4,3110.9,3.21448]
[1720661924280,0.00675775,3111.4,3110.8,2.4319]
[1720661924281,1e-08,3111.4,3111.0,3.61425887]
[1720661924582,1e-08,3111.4,3111.0,5.63225887]
[1720661924786,0.1137545,3112.6,3111.3,3.21408]
[1720661924933,0.1137545,3112.6,3112.3,2.018]
[1720661925133,0.1137545,3112.6,3112.4,0.06423892]
[1720661925352,0.1137545,3112.6,3112.5,0.55]
[1720661925589,0.1137545,3112.6,3112.5,0.61423855]
[1720661925765,0.1137545,3112.6,3112.5,9.52483855]